fUSD/lending_fUSD_20241231
["ID","MTS","AMOUNT","RATE_DAILY","PERIOD"]
[347322269,1735686647402,-500.0,0.00011289,2]
[347322270,1735686647411,-500.0,0.00011289,2]
[347322271,1735686647420,-552.89657911,0.00011289,2]
[347322272,1735686647431,-500.0,0.00011289,2]
[347322273,1735686647440,-892.78634222,0.00011289,2]
[347322274,1735686647460,-172.87365778,0.00011289,2]
[347322275,1735686647469,-1004.40222566,0.00011289,2]
[347322276,1735686647481,-1837.79044697,0.00011289,2]
[347322277,1735686647492,-588.98732737,0.00011289,2]
[347322278,1735686647501,-657.39,0.00011289,2]
[347322279,1735686647511,-3688.62267263,0.00011289,2]
[347322280,1735686647551,-440.0000011,0.00011289,2]
[347322281,1735686647574,-514.50732627,0.00011289,2]
[347322282,1735686647584,-95.68276084,0.00011289,2]
[347322283,1735686647595,-404.31723916,0.00011289,2]
[347322284,1735686647604,-1742.45,0.00011289,2]
[347322285,1735686647613,-569.78,0.00011289,2]
[347322286,1735686647622,-500.0,0.00011289,2]
[347322287,1735686647632,-500.0,0.00011289,2]
[347322288,1735686647641,-978.89515854,0.00011289,2]
[347322289,1735686647653,-565.134902,0.00011289,2]
[347322290,1735686647663,-611.5600217,0.00011289,2]
[347322295,1735686819768,1000.0,0.00010408,2]
[347322296,1735686834241,405.24,0.00010137,2]
[347322298,1735686982939,165.247,0.0001092,2]
[347322299,1735687004286,4000.0,0.00010959,2]
[347322300,1735687005381,170.01,0.00010703,2]
[347322301,1735687083963,250.0,0.00010363,2]
[347322302,1735687109290,1156.7,8.481e-05,2]
[347322303,1735687109538,1156.7,0.00010745,2]
[347322304,1735687163257,444.59,0.00010374,2]
[347322305,1735687163436,444.59,0.00010377,2]
[347322306,1735687163525,444.59,0.0001038,2]
[347322307,1735687163606,444.59,0.00010383,2]
[347322308,1735687163704,444.59,0.00010385,2]
[347322309,1735687163833,444.59,0.00010388,2]
[347322310,1735687164024,444.59,0.00010391,2]
[347322311,1735687164107,444.59,0.00010394,2]
[347322312,1735687164326,444.59,0.00010396,2]
[347322313,1735687164720,444.59,0.00010399,2]
[347322314,1735687164925,444.59,0.00010402,2]
[347322315,1735687165183,444.59,0.00010405,2]
[347322316,1735687165359,444.59,0.00010407,2]
[347322317,1735687165638,444.59,0.0001041,2]
[347322318,1735687165732,444.59,0.00010413,2]
[347322319,1735687165952,444.59,0.00010416,2]
[347322320,1735687166152,444.59,0.00010418,2]
[347322321,1735687166357,444.59,0.00010421,2]
[347322322,1735687166560,444.59,0.00010424,2]
[347322323,1735687166787,444.59,0.00010427,2]
[347322325,1735687331597,1003.98,0.00010371,2]
[347322326,1735687371405,250.0,0.00010371,2]
[347322329,1735687519718,814.6826059,9e-05,2]
[347322330,1735687529070,7005.13373211,9e-05,2]
[347322331,1735687535859,5000.0,8e-05,2]
[347322332,1735687543792,981.97,0.00010486,2]
[347322333,1735687554193,15859.34016782,6.94e-05,2]
[347322334,1735687565024,400.0,0.00010986,2]
[347322335,1735687614567,158.476,0.0001092,2]
[347322336,1735687616061,559.34,0.00010372,2]
[347322337,1735687620969,300.0,0.000103,3]
[347322338,1735687623410,700.0,0.000104,3]
[347322339,1735687625178,1100.0,0.000105,3]
[347322340,1735687627289,1500.0,0.000106,3]
[347322341,1735687629645,1800.0,0.000107,3]
[347322342,1735687631529,300.0,0.000108,3]
[347322343,1735687634172,300.0,0.000109,3]
[347322344,1735687666567,1000.0,0.00010384,2]
[347322348,1735687790863,336.34,0.00010137,2]
[347322363,1735687832472,-786.31366388,0.00011064,2]
[347322364,1735687832483,-176.67333612,0.00011064,2]
[347322365,1735687832491,-300.0,0.00011179,2]
[347322366,1735687832501,-2953.38061,0.0001118,2]
[347322367,1735687832510,-671.33189,0.0001118,2]
[347322368,1735687832519,-671.33189,0.0001118,2]
[347322369,1735687832528,-671.33189,0.0001118,2]
[347322370,1735687832537,-671.33189,0.0001118,2]
[347322371,1735687832547,-671.33189,0.0001118,2]
[347322372,1735687832556,-356.44797086,0.00011273,2]
[347322373,1735687832566,-500.0,0.00011273,2]
[347322374,1735687832575,-500.0,0.00011273,2]
[347322375,1735687832584,-2192.65,0.00011284,2]
[347322376,1735687832593,-2788.42,0.00011284,2]
[347322377,1735687832603,-7729.44,0.00011285,2]
[347322378,1735687832612,-1923.17,0.00011285,2]
[347322379,1735687832624,-449.56984198,0.00011285,2]
[347322380,1735687832654,-580.87891067,0.00011285,2]
[347322381,1735687832667,-719.68076002,0.00011285,2]
[347322382,1735687832679,-551.58503369,0.00011285,2]
[347322383,1735687832691,-1000.20545364,0.00011285,2]
[347322384,1735687832700,-1338.39,0.00011285,2]
[347322385,1735687832710,-3786.73,0.00011285,2]
[347322386,1735687832720,-3095.04522304,0.00011285,2]
[347322387,1735687832731,-470.0,0.00011285,2]
[347322388,1735687832743,-2953.45477696,0.00011285,2]
[347322389,1735687832752,-9759.52767723,0.00011285,2]
[347322390,1735687832763,-2531.89232277,0.00011285,2]
[347322391,1735687832773,-562.50848319,0.00011285,2]
[347322392,1735687832801,-409.8822205,0.00011285,2]
[347322393,1735687832822,-254.46,0.00011285,2]
[347322419,1735687838263,-1072.35,0.00011285,2]
[347322420,1735687838275,-577.56498034,0.00011285,2]
[347322421,1735687838298,-500.0,0.00011285,2]
[347322422,1735687838309,-2110.09431597,0.00011285,2]
[347322423,1735687838318,-5550.07,0.00011285,2]
[347322424,1735687838327,-9497.42774413,0.00011285,2]
[347322425,1735687838338,-4173.9,0.00011285,2]
[347322426,1735687838366,-1700.46225587,0.00011285,2]
[347322427,1735687838375,-7941.73,0.00011285,2]
[347322428,1735687838384,-121.20774413,0.00011285,2]
[347322429,1735687838496,-811.351313,0.00011285,2]
[347322430,1735687838508,-4827.74473643,0.00011285,2]
[347322433,1735687840381,-500.0,0.00011284,2]
[347322434,1735687840391,-4454.83552364,0.00011285,2]
[347322435,1735687840497,-3267.5106828,0.00011285,2]
[347322436,1735687840508,-8957.326818,0.00011285,2]
[347322437,1735687840519,-1126.163182,0.00011285,2]
[347322438,1735687840531,-1876.68632721,0.00011285,2]
[347322439,1735687840543,-683.52260615,0.00011285,2]
[347322440,1735687840556,-443.19153326,0.00011285,2]
[347322441,1735687840571,-1836.6,0.00011285,2]
[347322449,1735687843356,-500.0,0.00011284,2]
[347322450,1735687843366,-321.61573816,0.00011284,2]
[347322451,1735687843379,-5027.31426184,0.00011284,2]
[347322452,1735687843388,-42405.64953338,0.00011285,2]
[347322453,1735687843397,-500.0,0.00011285,2]
[347322454,1735687843406,-5509.12,0.00011285,2]
[347322455,1735687843415,-2634.11,0.00011285,2]
[347322456,1735687843425,-1335.71,0.00011285,2]
[347322457,1735687843434,-16482.8,0.00011285,2]
[347322458,1735687843446,-7797.3,0.00011285,2]
[347322459,1735687843458,-20335.55253586,0.00011285,2]
[347322460,1735687843490,-1434.01746414,0.00011285,2]
[347322461,1735687843499,-3836.76,0.00011285,2]
[347322462,1735687843508,-8326.41,0.00011285,2]
[347322463,1735687843517,-11668.95,0.00011285,2]
[347322464,1735687843526,-3935.91,0.00011285,2]
[347322465,1735687843536,-17122.59,0.00011285,2]
[347322466,1735687843546,-500.0,0.00011285,2]
[347322467,1735687843556,-500.0,0.00011285,2]
[347322468,1735687843565,-18414.09,0.00011285,2]
[347322469,1735687843575,-835.34,0.00011285,2]
[347322470,1735687843584,-26232.37,0.00011285,2]
[347322471,1735687843593,-6390.26,0.00011285,2]
[347322472,1735687843603,-1365.18,0.00011285,2]
[347322473,1735687843612,-1531.37,0.00011285,2]
[347322474,1735687843621,-9363.87,0.00011285,2]
[347322475,1735687843631,-1847.9,0.00011285,2]
[347322477,1735687843640,-1925.06,0.00011285,2]
[347322478,1735687843649,-3034.7,0.00011285,2]
[347322479,1735687843658,-2959.66,0.00011285,2]
[347322480,1735687843667,-7208.07,0.00011285,2]
[347322481,1735687843678,-2788.53,0.00011285,2]
[347322482,1735687843687,-500.0,0.00011286,2]
[347322483,1735687843696,-500.0,0.00011286,2]
[347322484,1735687843705,-500.0,0.00011286,2]
[347322485,1735687843715,-500.0,0.00011286,2]
[347322486,1735687843723,-500.0,0.00011286,2]
[347322487,1735687843732,-500.0,0.00011286,2]
[347322488,1735687843742,-575.34769694,0.00011286,2]
[347322489,1735687843751,-1697.89,0.00011286,2]
[347322490,1735687843760,-500.0,0.00011286,2]
[347322491,1735687843770,-500.0,0.00011286,2]
[347322492,1735687843779,-1195.76,0.00011286,2]
[347322493,1735687843787,-597.41,0.00011286,2]
[347322494,1735687843797,-500.0,0.00011286,2]
[347322496,1735687843806,-500.0,0.00011286,2]
[347322498,1735687843815,-500.0,0.00011286,2]
[347322500,1735687843824,-1909.47,0.00011286,2]
[347322501,1735687843834,-1216.54,0.00011286,2]
[347322502,1735687843843,-500.0,0.00011286,2]
[347322503,1735687843852,-1952.97,0.00011286,2]
[347322504,1735687843861,-500.0,0.00011286,2]
[347322505,1735687843871,-500.0,0.00011286,2]
[347322506,1735687843880,-500.0,0.00011286,2]
[347322507,1735687843889,-1675.43,0.00011286,2]
[347322508,1735687843899,-804.37,0.00011286,2]
[347322509,1735687843908,-500.0,0.00011286,2]
[347322510,1735687843917,-2793.47,0.00011286,2]
[347322511,1735687843926,-500.0,0.00011286,2]
[347322512,1735687843935,-5863.09,0.00011286,2]
[347322513,1735687843944,-500.0,0.00011286,2]
[347322514,1735687843953,-500.0,0.00011286,2]
[347322515,1735687843962,-4278.73,0.00011286,2]
[347322516,1735687843971,-500.0,0.00011286,2]
[347322517,1735687843980,-500.0,0.00011286,2]
[347322518,1735687843990,-500.0,0.00011286,2]
[347322519,1735687843999,-3385.42,0.00011286,2]
[347322520,1735687844008,-500.0,0.00011286,2]
[347322521,1735687844018,-500.0,0.00011286,2]
[347322522,1735687844027,-888.0,0.00011286,2]
[347322523,1735687844037,-500.0,0.00011286,2]
[347322524,1735687844046,-500.0,0.00011286,2]
[347322525,1735687844055,-2264.47,0.00011286,2]
[347322526,1735687844064,-500.0,0.00011286,2]
[347322527,1735687844073,-500.0,0.00011286,2]
[347322528,1735687844083,-293.23042277,0.00011286,2]
[347322529,1735687844091,-500.0,0.00011286,2]
[347322530,1735687844100,-494.82594686,0.00011286,2]
[347322531,1735687844110,-500.0,0.00011286,2]
[347322532,1735687844118,-500.0,0.00011286,2]
[347322533,1735687844128,-458.0,0.00011286,2]
[347322534,1735687844138,-500.0,0.00011286,2]
[347322535,1735687844147,-512.95771621,0.00011286,2]
[347322536,1735687844156,-500.0,0.00011286,2]
[347322537,1735687844165,-2889.77,0.00011286,2]
[347322538,1735687844174,-14782.87,0.00011286,2]
[347322539,1735687844182,-500.0,0.00011286,2]
[347322540,1735687844191,-1734.91,0.00011286,2]
[347322541,1735687844200,-539.73,0.00011286,2]
[347322542,1735687844209,-500.0,0.00011286,2]
[347322543,1735687844218,-399.8815992,0.00011286,2]
[347322544,1735687844227,-500.0,0.00011286,2]
[347322545,1735687844237,-500.0,0.00011286,2]
[347322546,1735687844246,-4143.62,0.00011286,2]
[347322547,1735687844255,-500.0,0.00011286,2]
[347322548,1735687844264,-500.0,0.00011286,2]
[347322549,1735687844273,-8611.72,0.00011286,2]
[347322550,1735687844283,-500.0,0.00011286,2]
[347322551,1735687844292,-2349.39,0.00011286,2]
[347322552,1735687844301,-1232.55,0.00011286,2]
[347322553,1735687844311,-500.0,0.00011286,2]
[347322554,1735687844320,-500.0,0.00011286,2]
[347322555,1735687844329,-2291.44,0.00011286,2]
[347322556,1735687844338,-500.0,0.00011286,2]
[347322557,1735687844348,-1063.47,0.00011286,2]
[347322558,1735687844357,-500.0,0.00011286,2]
[347322559,1735687844367,-500.0,0.00011286,2]
[347322560,1735687844377,-500.0,0.00011286,2]
[347322561,1735687844387,-500.0,0.00011286,2]
[347322562,1735687844396,-5391.05,0.00011286,2]
[347322563,1735687844405,-500.0,0.00011286,2]
[347322564,1735687844415,-1163.02,0.00011286,2]
[347322565,1735687844424,-500.0,0.00011286,2]
[347322566,1735687844433,-6624.85,0.00011286,2]
[347322567,1735687844444,-2281.63662,0.00011286,2]
[347322568,1735687844453,-960.66,0.00011286,2]
[347322569,1735687844462,-500.0,0.00011286,2]
[347322570,1735687844471,-500.0,0.00011286,2]
[347322571,1735687844482,-5055.9,0.00011286,2]
[347322572,1735687844491,-500.0,0.00011286,2]
[347322573,1735687844500,-594.68,0.00011286,2]
[347322574,1735687844509,-500.0,0.00011286,2]
[347322575,1735687844519,-2246.330635,0.00011286,2]
[347322576,1735687844528,-500.0,0.00011286,2]
[347322577,1735687844537,-3243.29,0.00011286,2]
[347322578,1735687844547,-500.0,0.00011286,2]
[347322579,1735687844555,-176.65801,0.00011286,2]
[347322580,1735687844565,-648.64,0.00011286,2]
[347322581,1735687844574,-500.0,0.00011286,2]
[347322582,1735687844583,-152.844848,0.00011286,2]
[347322583,1735687844592,-4504.8,0.00011286,2]
[347322584,1735687844601,-500.0,0.00011286,2]
[347322585,1735687844611,-1665.48,0.00011286,2]
[347322586,1735687844620,-500.0,0.00011286,2]
[347322587,1735687844629,-1874.98,0.00011286,2]
[347322588,1735687844638,-500.0,0.00011286,2]
[347322589,1735687844647,-500.0,0.00011286,2]
[347322590,1735687844656,-500.0,0.00011286,2]
[347322591,1735687844665,-500.0,0.00011286,2]
[347322592,1735687844676,-1491.75,0.00011286,2]
[347322593,1735687844686,-152.15091143,0.00011286,2]
[347322594,1735687844695,-2492.74,0.00011286,2]
[347322595,1735687844704,-500.0,0.00011286,2]
[347322596,1735687844714,-2308.46,0.00011286,2]
[347322597,1735687844724,-1289.11,0.00011286,2]
[347322598,1735687844733,-500.0,0.00011286,2]
[347322599,1735687844743,-500.0,0.00011286,2]
[347322600,1735687844754,-2644.19,0.00011286,2]
[347322601,1735687844763,-386.98714931,0.00011286,2]
[347322602,1735687844772,-681.93,0.00011286,2]
[347322603,1735687844781,-500.0,0.00011286,2]
[347322604,1735687844791,-500.0,0.00011286,2]
[347322605,1735687844801,-500.0,0.00011286,2]
[347322606,1735687844811,-1306.11,0.00011286,2]
[347322607,1735687844821,-3143.79,0.00011286,2]
[347322608,1735687844833,-500.0,0.00011286,2]
[347322609,1735687844844,-1576.38,0.00011286,2]
[347322610,1735687844853,-2885.73,0.00011286,2]
[347322611,1735687844862,-500.0,0.00011286,2]
[347322612,1735687844872,-1900.37,0.00011286,2]
[347322613,1735687844882,-6121.31,0.00011286,2]
[347322614,1735687844893,-500.0,0.00011286,2]
[347322615,1735687844902,-500.0,0.00011286,2]
[347322616,1735687844913,-3341.67,0.00011286,2]
[347322617,1735687844923,-500.0,0.00011286,2]
[347322618,1735687844933,-2184.82,0.00011286,2]
[347322619,1735687844942,-500.0,0.00011286,2]
[347322620,1735687844952,-3918.98,0.00011286,2]
[347322621,1735687844962,-500.0,0.00011286,2]
[347322622,1735687844972,-3411.35,0.00011286,2]
[347322623,1735687844981,-500.0,0.00011286,2]
[347322624,1735687844991,-500.0,0.00011286,2]
[347322625,1735687845002,-1299.21,0.00011286,2]
[347322626,1735687845011,-500.0,0.00011286,2]
[347322627,1735687845020,-3385.72,0.00011286,2]
[347322628,1735687845030,-500.0,0.00011286,2]
[347322629,1735687845039,-6021.73,0.00011286,2]
[347322630,1735687845049,-5225.26,0.00011286,2]
[347322631,1735687845058,-500.0,0.00011286,2]
[347322632,1735687845067,-2683.34,0.00011286,2]
[347322633,1735687845076,-500.0,0.00011286,2]
[347322634,1735687845086,-2519.22,0.00011286,2]
[347322635,1735687845095,-500.0,0.00011286,2]
[347322636,1735687845105,-2699.81,0.00011286,2]
[347322637,1735687845114,-500.0,0.00011286,2]
[347322638,1735687845124,-2579.65,0.00011286,2]
[347322639,1735687845133,-11580.13,0.00011286,2]
[347322640,1735687845143,-6351.97,0.00011286,2]
[347322641,1735687845152,-500.0,0.00011286,2]
[347322642,1735687845161,-500.0,0.00011286,2]
[347322643,1735687845170,-3268.09,0.00011286,2]
[347322644,1735687845179,-500.0,0.00011286,2]
[347322645,1735687845188,-500.0,0.00011286,2]
[347322646,1735687845197,-16857.79,0.00011286,2]
[347322647,1735687845206,-500.0,0.00011286,2]
[347322648,1735687845215,-2301.27,0.00011286,2]
[347322649,1735687845225,-500.0,0.00011286,2]
[347322650,1735687845234,-500.0,0.00011286,2]
[347322651,1735687845243,-21231.28,0.00011286,2]
[347322652,1735687845252,-745.32,0.00011286,2]
[347322653,1735687845261,-500.0,0.00011286,2]
[347322654,1735687845270,-490.68176043,0.00011286,2]
[347322655,1735687845280,-1855.14,0.00011286,2]
[347322656,1735687845289,-500.0,0.00011286,2]
[347322657,1735687845299,-9127.29,0.00011286,2]
[347322658,1735687845308,-1391.8,0.00011286,2]
[347322659,1735687845317,-500.0,0.00011286,2]
[347322660,1735687845326,-5103.32,0.00011286,2]
[347322661,1735687845335,-1371.12,0.00011286,2]
[347322662,1735687845345,-500.0,0.00011286,2]
[347322663,1735687845354,-500.0,0.00011286,2]
[347322664,1735687845363,-601.79037458,0.00011286,2]
[347322665,1735687845372,-500.0,0.00011286,2]
[347322666,1735687845382,-1668.03,0.00011286,2]
[347322667,1735687845391,-15096.13,0.00011286,2]
[347322668,1735687845400,-816.34,0.00011286,2]
[347322669,1735687845410,-500.0,0.00011286,2]
[347322670,1735687845419,-500.0,0.00011286,2]
[347322671,1735687845428,-2534.41,0.00011286,2]
[347322672,1735687845438,-500.0,0.00011286,2]
[347322673,1735687845447,-4129.13,0.00011286,2]
[347322674,1735687845456,-590.44,0.00011286,2]
[347322675,1735687845465,-500.0,0.00011286,2]
[347322676,1735687845475,-500.0,0.00011286,2]
[347322677,1735687845484,-2594.13,0.00011286,2]
[347322678,1735687845493,-1411.21,0.00011286,2]
[347322679,1735687845502,-3282.29,0.00011286,2]
[347322680,1735687845511,-500.0,0.00011286,2]
[347322681,1735687845520,-500.0,0.00011286,2]
[347322682,1735687845530,-500.0,0.00011286,2]
[347322683,1735687845540,-500.0,0.00011286,2]
[347322684,1735687845549,-4301.74,0.00011286,2]
[347322685,1735687845558,-500.0,0.00011286,2]
[347322686,1735687845568,-500.0,0.00011286,2]
[347322687,1735687845577,-5332.33,0.00011286,2]
[347322688,1735687845586,-2968.79,0.00011286,2]
[347322689,1735687845595,-500.0,0.00011286,2]
[347322690,1735687845604,-500.0,0.00011286,2]
[347322691,1735687845613,-1967.45,0.00011286,2]
[347322692,1735687845622,-1733.36,0.00011286,2]
[347322693,1735687845631,-500.0,0.00011286,2]
[347322694,1735687845640,-3413.21,0.00011286,2]
[347322695,1735687845650,-500.0,0.00011286,2]
[347322696,1735687845659,-500.0,0.00011286,2]
[347322697,1735687845670,-3269.24,0.00011286,2]
[347322698,1735687845681,-3299.83,0.00011286,2]
[347322699,1735687845690,-500.0,0.00011286,2]
[347322700,1735687845699,-500.0,0.00011286,2]
[347322701,1735687845708,-500.0,0.00011286,2]
[347322702,1735687845718,-568.18,0.00011286,2]
[347322703,1735687845727,-9898.53,0.00011286,2]
[347322704,1735687845736,-500.0,0.00011286,2]
[347322705,1735687845747,-5634.33,0.00011286,2]
[347322706,1735687845757,-500.0,0.00011286,2]
[347322707,1735687845766,-5502.67,0.00011286,2]
[347322708,1735687845775,-500.0,0.00011286,2]
[347322709,1735687845784,-500.0,0.00011286,2]
[347322710,1735687845796,-1910.61,0.00011286,2]
[347322711,1735687845805,-500.0,0.00011286,2]
[347322712,1735687845814,-4577.25,0.00011286,2]
[347322713,1735687845823,-500.0,0.00011286,2]
[347322714,1735687845832,-500.0,0.00011286,2]
[347322715,1735687845840,-2989.54,0.00011286,2]
[347322716,1735687845851,-2464.75,0.00011286,2]
[347322717,1735687845860,-4864.91,0.00011286,2]
[347322718,1735687845869,-500.0,0.00011286,2]
[347322719,1735687845878,-1620.91,0.00011286,2]
[347322720,1735687845888,-269.66074265,0.00011286,2]
[347322721,1735687845897,-500.0,0.00011286,2]
[347322722,1735687845906,-26913.24,0.00011286,2]
[347322723,1735687845916,-500.0,0.00011286,2]
[347322724,1735687845926,-500.0,0.00011286,2]
[347322725,1735687845936,-500.0,0.00011286,2]
[347322726,1735687845945,-500.0,0.00011286,2]
[347322727,1735687845955,-3462.38,0.00011286,2]
[347322728,1735687845964,-500.0,0.00011286,2]
[347322729,1735687845973,-500.0,0.00011286,2]
[347322730,1735687845984,-500.0,0.00011286,2]
[347322731,1735687845993,-15127.74,0.00011286,2]
[347322732,1735687846002,-3637.14,0.00011286,2]
[347322733,1735687846011,-5764.13,0.00011286,2]
[347322734,1735687846020,-830.65,0.00011286,2]
[347322735,1735687846030,-500.0,0.00011286,2]
[347322736,1735687846039,-5182.39,0.00011286,2]
[347322737,1735687846048,-500.0,0.00011286,2]
[347322738,1735687846058,-500.0,0.00011286,2]
[347322739,1735687846067,-3988.2,0.00011286,2]
[347322740,1735687846077,-7500.0,0.00011286,2]
[347322742,1735687846087,-4706.85,0.00011286,2]
[347322743,1735687846096,-2000.92080025,0.00011287,2]
[347322744,1735687846106,-715687.14726912,0.00011287,2]
[347322745,1735687846115,-500.0,0.00011287,2]
[347322746,1735687846124,-1236.42,0.00011287,2]
[347322747,1735687846133,-809.77,0.00011287,2]
[347322748,1735687846142,-300.91165972,0.00011287,2]
[347322749,1735687846151,-500.0,0.00011287,2]
[347322750,1735687846160,-500.0,0.00011287,2]
[347322751,1735687846169,-500.0,0.00011287,2]
[347322752,1735687846179,-1105.45,0.00011287,2]
[347322753,1735687846188,-500.0,0.00011287,2]
[347322754,1735687846197,-837.46,0.00011287,2]
[347322755,1735687846207,-834.17,0.00011287,2]
[347322756,1735687846216,-500.0,0.00011287,2]
[347322757,1735687846225,-1624.53,0.00011287,2]
[347322758,1735687846234,-500.0,0.00011287,2]
[347322759,1735687846243,-500.0,0.00011287,2]
[347322760,1735687846253,-2274.41,0.00011287,2]
[347322761,1735687846262,-500.0,0.00011287,2]
[347322762,1735687846272,-617.82,0.00011287,2]
[347322763,1735687846281,-1080.23,0.00011287,2]
[347322764,1735687846291,-500.0,0.00011287,2]
[347322765,1735687846300,-500.0,0.00011287,2]
[347322766,1735687846310,-1358.82,0.00011287,2]
[347322767,1735687846319,-656.84,0.00011287,2]
[347322768,1735687846328,-1980.93,0.00011287,2]
[347322769,1735687846338,-1057.54,0.00011287,2]
[347322770,1735687846347,-500.0,0.00011287,2]
[347322771,1735687846357,-500.0,0.00011287,2]
[347322772,1735687846366,-2252.87,0.00011287,2]
[347322773,1735687846376,-955.35,0.00011287,2]
[347322774,1735687846385,-1652.18,0.00011287,2]
[347322775,1735687846394,-500.0,0.00011287,2]
[347322776,1735687846403,-1027.18,0.00011287,2]
[347322777,1735687846413,-1567.31,0.00011287,2]
[347322778,1735687846422,-500.0,0.00011287,2]
[347322779,1735687846432,-2314.58,0.00011287,2]
[347322780,1735687846442,-500.0,0.00011287,2]
[347322781,1735687846451,-500.0,0.00011287,2]
[347322782,1735687846461,-500.0,0.00011287,2]
[347322783,1735687846472,-500.0,0.00011287,2]
[347322784,1735687846481,-1200.45,0.00011287,2]
[347322785,1735687846490,-500.0,0.00011287,2]
[347322786,1735687846499,-1026.21,0.00011287,2]
[347322787,1735687846510,-1449.01,0.00011287,2]
[347322788,1735687846520,-2632.46,0.00011287,2]
[347322789,1735687846531,-536.29,0.00011287,2]
[347322790,1735687846542,-500.0,0.00011287,2]
[347322791,1735687846553,-654.36,0.00011287,2]
[347322792,1735687846566,-500.0,0.00011287,2]
[347322793,1735687846576,-500.0,0.00011287,2]
[347322794,1735687846585,-500.0,0.00011287,2]
[347322802,1735687846857,-500.0,0.00011287,2]
[347322803,1735687846868,-553.0,0.00011287,2]
[347322804,1735687846878,-500.0,0.00011287,2]
[347322805,1735687846887,-500.0,0.00011287,2]
[347322806,1735687846896,-502.85928324,0.00011287,2]
[347322807,1735687846905,-500.0,0.00011287,2]
[347322808,1735687846915,-500.0,0.00011287,2]
[347322809,1735687846924,-500.0,0.00011287,2]
[347322810,1735687846933,-2074.4,0.00011287,2]
[347322811,1735687846942,-1632.41,0.00011287,2]
[347322812,1735687846952,-500.0,0.00011287,2]
[347322813,1735687846962,-553.44,0.00011287,2]
[347322814,1735687846971,-500.0,0.00011287,2]
[347322815,1735687846980,-771.58,0.00011287,2]
[347322816,1735687846990,-500.0,0.00011287,2]
[347322817,1735687847000,-1002.78,0.00011287,2]
[347322818,1735687847009,-500.0,0.00011287,2]
[347322819,1735687847018,-503.55,0.00011287,2]
[347322820,1735687847028,-500.0,0.00011287,2]
[347322821,1735687847038,-2937.37,0.00011287,2]
[347322822,1735687847047,-529.85,0.00011287,2]
[347322823,1735687847056,-500.0,0.00011287,2]
[347322824,1735687847065,-500.0,0.00011287,2]
[347322825,1735687847074,-500.0,0.00011287,2]
[347322826,1735687847084,-1428.78,0.00011287,2]
[347322827,1735687847093,-1020.66,0.00011287,2]
[347322828,1735687847102,-500.0,0.00011287,2]
[347322829,1735687847111,-500.0,0.00011287,2]
[347322830,1735687847121,-1367.75,0.00011287,2]
[347322831,1735687847130,-571.36,0.00011287,2]
[347322832,1735687847139,-1124.23,0.00011287,2]
[347322833,1735687847148,-500.0,0.00011287,2]
[347322834,1735687847157,-500.0,0.00011287,2]
[347322835,1735687847166,-500.0,0.00011287,2]
[347322836,1735687847175,-500.0,0.00011287,2]
[347322837,1735687847184,-500.0,0.00011287,2]
[347322838,1735687847194,-500.0,0.00011287,2]
[347322839,1735687847203,-1116.14,0.00011287,2]